{"text_format":"1","workbook":"xlsx","n_sheets":3,"sheets":["Feuil1","Feuil2","Feuil3"],"not_rendered":{"charts":0,"images":0,"macros":0,"external_links":0,"defined_names":0,"comments":0,"pivot_tables":0},"unopened":[],"bounds":{"document_bytes":16777216,"sheet_cells":100000,"rows_first":2000,"rows_last":500,"rows_between":2000,"halvings":0,"cell_chars":16384,"cell_head_chars":4096},"cells_cut":0,"cells_raw":0,"read":"whole","date_system":"1900"}

{"sheet":"Feuil1","index":0,"n_rows":108,"n_cols":16,"rows_kept":108,"cut":false,"hidden":false,"merged":[[1,0,1,9],[1,11,41,11],[1,18,41,18],[2,10,11,10],[12,0,12,9],[39,0,40,0],[39,2,40,2]]}
[175,null,"4549 / 1020000",null,"7722 / 1020000",null,"2783 / 749000"]
[null,null,null,null,null,null,null,null,null,null,"Profil de l'alliance"]
["Nom du clan :","Éliminates"]
["Nombre de points :","241659 pts"]
["Moyenne points par joueur :","8055 pts"]
["Classement général :","4 ème"]
["Classement attaque :","3 ème"]
["Fondateur :","balthazar14"]
["Administrateur :","balthazar14"]
["Nombre de membres :",24]
[]
[4]
[]
[null,"Les membres"]
[null,"Joueur","Rang","Niv. ATK","Niv. EXP","Points","Evolution points","Planètes","Moyenne points par planètes","Status"]
[1,"Ilindith","Fury Céleste",1,32,"32416 pts",null,1,"32416 pts"]
[2,"balthazar14","Rangeur de lourds",4,22,"13027 pts",null,1,"13027 pts"]
[3,"skaara","Aucun",5,16,"11964 pts",null,1,"11964 pts"]
[4,"DarkMaul","Zabraks",8,19,"11211 pts",null,1,"11211 pts"]
[5,"NONO","Aucun",4,21,"9882 pts",null,1,"9882 pts"]
[6,"louisiane12","Pizzaïolo",6,23,"9731 pts",null,1,"9731 pts"]
[7,"pascal59","Aucun",1,1,"9362 pts",null,1,"9362 pts"]
[8,"youyou02","Destructeur",1,18,"8131 pts",null,1,"8131 pts"]
[9,"ancien","Pâtissier",1,1,"7858 pts",null,1,"7858 pts"]
[10,"Grizzly","Défenseur",1,21,"7776 pts",null,1,"7776 pts"]
[11,"gardevoir","Cuisinier",1,1,"7594 pts",null,1,"7594 pts"]
[12,"Templier","Le Prêcheur",1,11,"7273 pts",null,1,"7273 pts"]
[13,"archange","Dark shogun",1,1,"6859 pts",null,1,"6859 pts"]
[14,"onill","Archiviste",3,22,"6734 pts",null,1,"6734 pts"]
[15,"Pattedepoule","Boucher",1,1,"6373 pts",null,1,"6373 pts"]
[16,"pietrooo","Flemmard",4,14,"5943 pts",null,1,"5943 pts"]
[17,"dimitorris","Aucun",1,23,"5659 pts",null,1,"5659 pts"]
[18,"dionysos87000","Le Juge",1,3,"5657 pts",null,1,"5657 pts"]
[19,"Chill","Maitre Shaolin",1,5,"5160 pts",null,1,"5160 pts"]
[20,"miirdiine","The hitman",1,1,"4269 pts",null,1,"4269 pts"]
[21,"bardenas40","xerces",1,1,"3527 pts",null,1,"3527 pts"]
[22,"Megane","Dori++",1,12,"2550 pts",null,1,"2550 pts"]
[23,"djomeg","Aucun",1,2,"1353 pts",null,1,"1353 pts"]
[24,"Thor974","Aucun",1,1,"174 pts",null,1,"174 pts"]
[null,"Actif   Inactif depuis 3 jours   1 sem.   2 sem."]
[null,"Online   Offline"]
[null,"Evolution de la moyenne de points par membre"]
[null,null,"lourd","lerger","unas","jafas","anubis","scientifique"]
[null,"Ilindith",8300,null,450,100,{"$f":"SUM(E44:F44)","v":550}]
[null,"balthazar14",5000,null,700,230,930]
[null,"skaara",3500,null,null,9,9]
[null,"DarkMaul",4000,null,null,null,0]
[null,"NONO",3000,null,460,210,670]
[null,"louisiane12",2100,27,138,70,208]
[null,"pascal59",null,null,null,null,0]
[null,"youyou02",1410,null,null,null,0]
[null,"ancien",null,null,null,null,0]
[null,"Grizzly",2000,null,null,null,0]
[null,"gardevoir",2700,null,null,null,0]
[null,"Templier",4000,null,null,null,0]
[null,"archange",1400,null,null,null,0]
[null,"onill",null,null,null,null,0]
[null,"Pattedepoule",2800,1000,null,null,0,400]
[null,"pietrooo",750,null,null,null,0]
[null,"dimitorris",850,null,null,null,0]
[null,"dionysos87000",4500,null,null,null,0]
[null,"Chill",null,null,null,null,0]
[null,"miirdiine",null,null,null,null,0]
[null,"bardenas40",null,null,null,null,0]
[null,"Megane",988,null,null,null,0]
[null,"djomeg",400,null,null,null,0]
[null,"Thor974",1500,null,300,null,300]
[null,"totale",{"$f":"SUM(C45:C67)","v":40898},{"$f":"SUM(D44:D67)","v":1027},{"$f":"SUM(E44:E67)","v":2048},{"$f":"SUM(F44:F67)","v":619},2667,{"$f":"SUM(H44:H67)","v":400}]
[]
[null,"samedi 15 fevrier 2014"]
["Nom du clan :","Éliminates"]
["Nombre de points :","241564 pts"]
["Moyenne points par joueur :","8052 pts"]
["Classement général :","4 ème"]
["Classement attaque :","3 ème"]
["Fondateur :","balthazar14"]
["Administrateur :","balthazar14"]
["Nombre de membres :","Membres   24"]
[]
[]
[null,"Les membres"]
[]
[null,"FLOTTE","transporteur","x301","Planeur de la mort","BC-303 Prométhée","Ha'tak","Beliskner","BC-304 Dédale","Tel'tak","Chasseur F-302","Al'Kesh","Vaisseau mère Asgard","O'neill","Jackson","Terraformeur Gadmeer"]
[null,"Ilindith",45]
[null,"balthazar14"]
[null,"skaara",8,14]
[null,"DarkMaul",8]
[null,"NONO",4,1]
["pas de flotte","louisiane12"]
[null,"pascal59"]
[null,"youyou02"]
["pas de flotte","ancien"]
[null,"Grizzly",3]
[null,"gardevoir",10,6]
["pas de flotte","Templier"]
[null,"archange"]
[null,"onill"]
["pas de flotte","Pattedepoule"]
[null,"pietrooo",6,10]
[null,"dimitorris"]
["pas de flotte","dionysos87000"]
[null,"Chill",4]
[null,"miirdiine",2,19]
[null,"bardenas40",6]
["pas de flotte","Megane"]
["pas de flotte","djomeg"]
[null,"Thor974"]
[null,"total général"]

{"sheet":"Feuil2","index":1,"n_rows":0,"n_cols":0,"rows_kept":0,"cut":false,"hidden":false,"merged":[]}

{"sheet":"Feuil3","index":2,"n_rows":0,"n_cols":0,"rows_kept":0,"cut":false,"hidden":false,"merged":[]}